bitfinex/quotes_ETHUSD_20240707
["timestamp","ask_amount","ask_price","bid_price","bid_amount"]
[1720368104657,3.0,2979.4,2979.0,2.34974]
[1720368105063,3.0,2979.7,2979.1,2.34969]
[1720368106358,3.0,2979.7,2978.8,2.3499]
[1720368106606,3.0,2979.3,2978.9,2.34981]
[1720368107896,3.0,2979.3,2978.7,2.34998]
[1720368108412,3.0,2978.9,2978.5,2.35014]
[1720368108760,3.0,2978.9,2978.7,2.34999]
[1720368109183,3.0,2978.9,2978.3,2.3503]
[1720368109359,3.0,2978.9,2978.5,2.3501]
[1720368109558,3.0,2978.9,2978.5,2.35011]
[1720368110180,3.0,2978.9,2978.3,2.35029]
[1720368111761,3.0,2978.9,2978.4,2.35024]
[1720368111995,3.0,2978.9,2978.3,2.35029]
[1720368113091,3.0,2978.9,2977.4,2.3033]
[1720368113092,3.0,2978.5,2977.8,2.35066]
[1720368113464,3.0,2978.5,2978.1,2.35042]
[1720368116425,3.0,2978.5,2977.8,4.70136]
[1720368116707,3.0,2978.2,2977.7,2.35079]
[1720368117870,3.0,2978.2,2977.8,2.35072]
[1720368118278,3.7016922,2978.7,2977.8,0.06716295]
[1720368118501,3.0,2978.7,2978.3,2.35031]
[1720368119271,3.0,2978.7,2978.3,2.35028]
[1720368119789,3.0,2978.7,2978.1,2.35043]
[1720368120169,3.0,2978.3,2977.9,2.35061]
[1720368120768,3.0,2978.7,2978.1,2.35047]
[1720368121396,3.0,2978.7,2978.1,2.35043]
[1720368121600,3.0,2978.4,2977.9,2.35061]
[1720368121828,3.0,2978.4,2977.9,2.35059]
[1720368121975,10.29,2978.7,2978.1,2.35042]
[1720368122405,10.29,2978.7,2978.2,2.35034]
[1720368123428,10.29,2978.7,2978.1,2.35042]
[1720368124121,10.29,2978.7,2978.2,2.35036]
[1720368124473,3.0,2978.4,2978.0,2.3505]
[1720368124791,3.0,2978.4,2977.8,2.35067]
[1720368125474,9.64002,2978.7,2977.4,2.351]
[1720368125475,3.0,2978.1,2977.4,2.351]
[1720368125690,3.0,2978.1,2977.4,5.351]
[1720368126118,3.0,2978.1,2977.3,2.271]
[1720368126318,3.0,2978.1,2977.5,2.3509]
[1720368126525,3.0,2978.1,2977.6,2.58592]
[1720368128121,3.0,2978.1,2977.7,2.35079]
[1720368128988,3.0,2978.1,2977.6,0.23509]
[1720368129287,3.0,2978.1,2977.6,2.35086]
[1720368129483,3.0,2978.1,2977.7,2.35078]
[1720368130102,3.0,2978.4,2978.0,2.35056]
[1720368130427,3.0,2978.4,2978.1,2.35049]
[1720368130831,7.29,2978.7,2978.1,4.62149]
[1720368130987,7.29,2978.7,2978.2,0.462149]
[1720368131188,3.0,2978.6,2978.3,2.35025]
[1720368131814,7.29,2978.7,2978.3,4.70052]
[1720368132132,7.29,2978.7,2978.4,2.3502]
[1720368132437,3.0,2978.9,2978.3,2.35025]
[1720368132607,3.0,2978.9,2978.3,2.35028]
[1720368132788,3.0,2978.9,2978.3,2.585308]
[1720368133162,7.29,2979.0,2978.8,2.34989]
[1720368133549,7.29,2979.0,2978.8,2.34988]
[1720368133843,7.29,2979.0,2978.3,2.585328]
[1720368133844,3.0,2978.8,2978.4,2.3502]
[1720368134045,3.0,2978.8,2978.3,0.235028]
[1720368134256,3.0,2978.8,2978.2,2.35035]
[1720368134561,7.29,2979.0,2978.3,2.35033]
[1720368134774,1.16307264,2978.9,2978.8,2.34992]
[1720368135063,7.29,2979.0,2978.8,2.34992]
[1720368135436,7.29,2979.0,2978.6,2.35004]
[1720368135634,1.16300168,2978.9,2978.7,2.35]
[1720368135817,7.29,2979.0,2978.8,2.34993]
[1720368136024,1.16301956,2978.9,2978.8,2.34993]
[1720368136745,3.0,2979.1,2978.9,2.34985]
[1720368137132,7.29,2979.3,2978.8,2.34993]
[1720368137333,5.2707,2979.5,2978.8,2.34993]
[1720368137334,5.2707,2979.5,2979.0,2.34976]
[1720368137543,1.16294334,2979.2,2979.0,2.34976]
[1720368137743,5.2707,2979.5,2979.0,2.34976]
[1720368137962,1.16286789,2979.4,2979.0,2.34976]
[1720368138135,1.16286789,2979.3,2979.1,2.34964]
[1720368138331,3.0,2979.5,2979.1,2.34964]
[1720368138562,1.1628216,2979.4,2979.1,2.34964]
[1720368138761,3.0,2979.5,2979.1,2.34964]
[1720368138960,1.16280684,2979.4,2979.1,2.34964]
[1720368139271,1.16280684,2979.4,2978.6,0.0671356]
[1720368139272,7.29,2979.6,2979.3,2.34954]
[1720368139475,1.16279706,2979.5,2979.3,2.34954]
[1720368139770,3.0,2979.5,2979.3,2.34954]
[1720368139984,1.16281982,2979.4,2979.3,2.34954]
[1720368140270,1.16281982,2979.4,2979.1,2.34969]
[1720368140271,3.0,2979.5,2979.1,2.34963]
[1720368140483,1.16282341,2979.4,2979.1,2.34963]
[1720368140656,1.16282341,2979.4,2978.7,2.34997]
[1720368140823,1.16282341,2979.3,2978.9,2.34983]
[1720368141025,1.16282341,2979.4,2978.9,2.34983]
[1720368141227,3.0,2979.1,2978.7,2.34995]
[1720368142574,5.2826,2979.1,2978.5,2.35013]
[1720368142776,1.16301741,2979.0,2978.5,4.70025]
[1720368143069,5.2826,2979.1,2978.5,2.35012]
[1720368143282,1.16301022,2979.0,2978.5,2.35012]
[1720368143454,5.2826,2979.1,2978.5,2.35012]
[1720368143632,1.16300666,2979.0,2978.5,2.35012]
[1720368143834,5.2826,2979.1,2978.7,2.35001]
[1720368144031,1.16301237,2979.0,2978.7,2.35001]
[1720368144404,1.16301237,2978.9,2978.7,2.35001]
[1720368144678,5.2826,2979.1,2978.3,2.35028]
[1720368144827,1.16303277,2979.0,2978.5,2.35011]
[1720368145171,5.2826,2979.1,2978.5,2.35011]
[1720368145477,1.86199946,2979.0,2978.5,2.35011]
[1720368145768,1.16303652,2978.9,2978.5,2.35011]
[1720368146373,0.70212645,2978.9,2978.5,2.35009]
[1720368146574,0.70212645,2979.0,2978.5,2.35009]
[1720368146757,0.70268067,2979.0,2978.6,2.35008]
[1720368146925,1.86572025,2978.9,2978.5,2.35009]
[1720368147124,0.70268067,2978.9,2978.5,2.35009]
[1720368147329,0.70268067,2978.9,2978.5,4.70022]
[1720368147529,0.70268067,2978.9,2978.6,2.35006]
[1720368147945,0.70268067,2979.0,2978.6,2.35006]
[1720368148142,4.05402101,2979.1,2978.6,2.35006]
[1720368148143,0.70268067,2978.9,2978.6,2.35006]
[1720368148478,0.70268067,2978.9,2978.7,2.35001]
[1720368148830,0.70268067,2979.0,2978.8,2.34993]
[1720368149155,1.1630252,2978.9,2978.6,2.35003]
[1720368149547,0.7033993,2978.8,2978.6,2.35003]
[1720368150078,0.7033993,2978.8,2978.7,2.35001]
[1720368150369,0.7033993,2978.9,2978.7,2.35001]
[1720368150882,0.7033993,2978.9,2978.5,2.35014]
[1720368150883,0.7033993,2978.8,2978.5,4.70024]
[1720368151044,0.7033993,2978.8,2978.5,2.35012]
[1720368151538,0.7033993,2978.7,2978.6,2.35006]
[1720368156478,0.70391267,2978.7,2978.6,2.35006]
[1720368156774,4.05509896,2978.8,2978.4,2.35023]
[1720368156981,0.70393297,2978.5,2978.4,2.35023]
[1720368157683,1.05509896,2978.5,2978.1,5.35044]
[1720368157841,0.70397836,2978.4,2978.1,2.35044]
[1720368158339,3.0,2978.1,2977.5,2.3509]
[1720368158539,0.70408647,2977.9,2977.5,2.3509]
[1720368158741,3.0,2977.8,2977.3,2.35108]
[1720368158993,3.0,2977.8,2977.4,2.35097]
[1720368158994,0.70408647,2977.7,2977.4,2.35097]
[1720368159203,0.70408647,2977.7,2977.5,2.35096]
[1720368159340,0.70408647,2977.7,2977.4,0.470204]
[1720368159550,0.70408647,2977.6,2977.5,2.35096]
[1720368159857,0.70408647,2977.6,2977.3,4.70212]
[1720368160045,0.70408647,2977.6,2977.4,2.35099]
[1720368160241,0.70408647,2977.7,2977.5,2.35096]
[1720368162084,0.70408647,2977.7,2977.5,4.70188]
[1720368162384,3.70408647,2977.8,2977.6,2.35088]
[1720368163061,3.70408647,2977.8,2977.5,2.821148]
[1720368163275,3.70408647,2977.8,2977.5,2.35096]
[1720368164198,0.70408647,2977.7,2977.5,2.35096]
[1720368165090,3.0,2977.5,2977.1,2.35121]
[1720368165284,3.0,2977.5,2976.6,2.35165]
[1720368165285,3.0,2977.2,2976.6,4.81125]
[1720368165468,3.0,2977.2,2976.7,0.235165]
[1720368165800,3.70376532,2977.2,2976.8,2.35147]
[1720368166094,3.70361644,2977.2,2976.8,2.35147]
[1720368166296,3.70361644,2977.2,2976.8,2.35146]
[1720368166462,3.0,2977.2,2976.8,8.4427075]
[1720368167103,3.0,2977.2,2976.9,2.35143]
[1720368167877,3.0,2977.2,2976.8,3.0]
[1720368168096,3.70361644,2977.2,2976.8,3.0]
[1720368168376,3.0,2977.2,2976.9,2.35141]
[1720368169277,3.0,2977.2,2976.8,2.35146]
[1720368169477,3.0,2977.2,2976.9,2.35143]
[1720368169882,0.70274313,2977.3,2977.0,2.35134]
[1720368170181,0.70274313,2977.4,2977.1,2.35128]
[1720368170778,0.70256974,2977.4,2977.1,2.35128]
[1720368171994,0.70256974,2977.4,2976.9,2.35138]
[1720368172189,3.0,2977.0,2976.9,2.35138]
[1720368173287,3.0,2977.3,2976.9,2.821665]
[1720368173495,3.0,2977.3,2977.1,2.35126]
[1720368174806,3.0,2977.3,2976.7,2.35155]
[1720368175048,3.0,2977.3,2976.8,2.35147]
[1720368175251,3.0,2976.9,2976.7,2.35155]
[1720368176031,3.0,2976.9,2976.7,2.35154]
[1720368179603,3.0,2976.9,2976.3,2.35187]
[1720368180341,3.0,2976.9,2976.3,4.70373]
[1720368180529,3.0,2976.9,2976.3,2.35186]
[1720368180708,3.0,2976.9,2976.5,2.35171]
[1720368181852,3.0,2976.9,2975.8,2.4036]
[1720368182008,3.0,2976.9,2976.4,2.35182]
[1720368182209,3.0,2976.9,2976.6,2.35166]
[1720368183546,3.0,2976.9,2976.4,2.587002]
[1720368183547,3.0,2976.9,2976.4,2.586942]
[1720368183870,3.0,2976.9,2976.2,2.35194]
[1720368184168,3.0,2976.9,2976.0,2.3521]
[1720368184169,3.0,2976.6,2976.0,2.3521]
[1720368184343,3.0,2976.6,2975.5,7.6746]
[1720368184552,3.0,2976.3,2975.6,3.35518]
[1720368184746,3.0,2976.3,2975.8,2.3523]
[1720368184947,3.0,2976.3,2975.6,2.35246]
[1720368185266,3.0,2976.0,2975.6,2.3524]
[1720368185627,3.0,2976.0,2975.7,2.35231]
[1720368185967,3.0,2976.3,2975.8,4.70454]
[1720368186473,3.0,2976.3,2975.8,2.35225]
[1720368186617,3.0,2976.3,2975.8,4.7045]
[1720368188045,3.0,2976.3,2975.8,2.35225]
[1720368188671,3.0,2976.3,2975.9,2.35221]
[1720368190393,3.0,2976.3,2976.0,2.35209]
[1720368190542,3.0,2976.3,2976.2,2.35199]
[1720368191240,3.0,2976.3,2976.0,2.35209]
[1720368191445,3.0,2976.3,2976.1,2.352]
[1720368192205,3.0,2976.3,2976.0,2.35209]
[1720368192363,3.0,2976.7,2976.2,2.35199]
[1720368193388,1.16393816,2976.6,2976.0,2.35209]
[1720368193612,3.0,2976.3,2975.8,2.35225]
[1720368193802,3.0,2976.0,2975.8,4.7045]
[1720368194078,3.0,2976.0,2975.8,2.35225]
[1720368196388,3.0,2976.3,2975.8,4.7045]
[1720368196888,3.0,2976.3,2975.8,2.35225]
[1720368197807,3.0,2976.3,2976.1,2.35207]
[1720368198101,3.0,2976.3,2975.7,2.35232]
[1720368198257,1.16410508,2976.2,2975.8,2.3523]
[1720368198461,3.0,2976.3,2975.8,2.3523]
[1720368198664,1.16412035,2976.2,2975.8,2.3523]
[1720368198970,3.0,2976.3,2975.8,2.3523]
[1720368199199,3.0,2975.7,2975.4,2.35255]
[1720368200111,3.0,2975.7,2975.5,2.35247]
[1720368200264,3.0,2975.7,2975.6,2.35246]
[1720368200465,3.0,2975.7,2975.4,4.70512]
[1720368201567,3.0,2975.7,2975.4,2.35255]
[1720368201979,3.0,2975.7,2975.5,2.35247]
[1720368202193,3.0,2976.1,2975.7,2.35236]
[1720368202395,3.0,2976.1,2975.6,2.35239]
[1720368202716,3.0,2976.1,2975.7,2.35231]
[1720368202879,7.28,2976.2,2976.1,2.35207]
[1720368203085,3.0,2976.4,2976.2,2.35197]
[1720368203607,3.0,2976.4,2976.2,2.35194]
[1720368203785,10.28,2976.7,2976.2,2.35193]
[1720368203988,10.28,2976.7,2976.5,2.35173]
[1720368204983,3.0,2977.0,2976.5,2.35173]
[1720368205187,1.16379006,2976.9,2976.5,2.35173]
[1720368205486,3.0,2977.0,2976.5,2.35173]
[1720368205869,3.0,2977.0,2976.7,2.35159]
[1720368206272,0.70248429,2977.2,2976.7,2.35159]
[1720368206512,1.16372271,2977.1,2976.7,2.35159]
[1720368206708,6.05688429,2977.3,2976.7,5.165369]
[1720368206709,3.70248429,2977.3,2976.7,5.165369]
[1720368206867,1.16366856,2977.2,2976.7,5.165369]
[1720368207068,3.0,2977.3,2976.8,2.35151]
[1720368207298,1.16366809,2977.2,2976.8,2.35151]
[1720368207504,0.70248429,2977.4,2976.9,2.35142]
[1720368207710,10.28,2977.5,2977.1,4.70242]
[1720368207923,1.16355999,2977.4,2977.1,4.70242]
[1720368208210,3.0,2977.5,2977.1,4.70242]
[1720368208590,3.0,2977.5,2977.1,2.3512]
[1720368208818,1.16358201,2977.4,2977.1,2.3512]
[1720368209107,3.70248429,2977.5,2977.1,2.3512]
[1720368209316,1.86610808,2977.4,2977.1,2.3512]
[1720368209489,0.70248429,2977.4,2977.1,2.3512]
[1720368209690,3.0,2977.2,2976.9,4.70279]
[1720368209908,3.0,2977.2,2976.9,2.35138]
[1720368210106,3.0,2977.2,2977.1,2.35128]
[1720368210516,0.70248429,2977.4,2977.2,2.3512]
[1720368211118,0.70248429,2977.4,2976.9,2.35137]
[1720368211319,0.70248429,2977.3,2976.9,2.35137]
[1720368211498,0.70248429,2977.3,2976.9,2.35139]
[1720368212293,3.70248429,2977.2,2976.9,2.35139]
[1720368212631,0.7032973,2977.1,2976.7,2.35156]
[1720368213011,0.7032973,2977.0,2976.7,2.35156]
[1720368215034,3.0,2976.8,2976.4,2.35181]
[1720368215410,3.7032973,2976.8,2976.4,2.35181]
[1720368215616,0.7032973,2976.7,2976.4,2.35181]
[1720368215813,0.70353767,2976.7,2976.4,2.35181]
[1720368217746,3.0,2976.4,2976.2,2.35193]
[1720368218607,0.70353767,2976.5,2976.3,2.35191]
[1720368218815,0.70353767,2976.6,2976.3,2.35191]
[1720368219042,3.0,2976.5,2976.3,2.35191]
[1720368219247,3.70353767,2976.5,2976.2,2.35197]
[1720368219830,3.70353767,2976.5,2976.2,4.70391]
[1720368220176,3.70353767,2976.5,2976.2,2.35194]
[1720368220472,0.70353767,2976.4,2976.1,2.35201]
[1720368221176,0.70353767,2976.3,2976.1,2.35201]
[1720368221473,0.70353767,2976.4,2976.1,2.35201]
[1720368221674,0.70353767,2976.4,2976.2,2.35194]
[1720368221976,3.70353767,2976.5,2976.2,2.35194]
[1720368223931,3.70353767,2976.5,2976.3,2.3519]
[1720368224779,0.70353767,2976.4,2976.2,2.35195]
[1720368225435,3.0,2976.5,2976.3,2.35191]
[1720368225774,3.70413285,2976.5,2976.3,2.35191]
[1720368225976,0.70413285,2976.4,2976.1,2.352]
[1720368226178,0.70413285,2976.4,2976.1,4.70401]
[1720368226468,0.70413285,2976.4,2976.1,2.352]
[1720368226670,0.70413285,2976.4,2976.2,2.35198]
[1720368227174,0.70413285,2976.4,2976.3,2.35191]
[1720368227474,3.0,2976.2,2975.6,2.3119]
[1720368227681,0.70425576,2976.1,2976.0,2.35215]
[1720368227837,1.05638364,2976.1,2976.0,2.35215]
[1720368228172,4.05638364,2976.2,2976.0,2.35215]
[1720368228675,1.05638364,2976.1,2976.0,2.35215]
[1720368228862,4.05639527,2976.2,2976.0,2.35215]
[1720368229538,1.05639527,2976.1,2976.0,2.35215]
[1720368230340,1.05639527,2976.1,2975.8,2.35226]
[1720368230538,0.704195,2975.9,2975.8,2.35226]
[1720368230973,3.0,2976.2,2975.8,2.35226]
[1720368231177,0.70420123,2975.9,2975.8,2.35226]
[1720368232577,3.0,2976.2,2975.9,2.35222]
[1720368232876,0.70416392,2976.1,2976.0,2.35215]
[1720368233565,0.70416392,2976.3,2976.1,2.35207]
[1720368233738,7.98416392,2976.4,2976.3,2.35191]
[1720368233938,0.70416392,2976.4,2976.3,2.35191]
[1720368234241,4.05624588,2976.5,2976.3,2.35191]
[1720368234563,1.05624588,2976.4,2976.2,2.35198]
[1720368235180,1.05624588,2976.4,2975.9,2.35215]
[1720368235181,3.0,2976.2,2975.9,2.35215]
[1720368235544,0.70432853,2976.1,2976.0,2.35213]
[1720368235768,1.05649279,2976.1,2976.0,2.35213]
[1720368235967,1.05649279,2976.1,2975.7,2.35234]
[1720368236273,0.70429938,2975.9,2975.7,2.35234]
[1720368236663,3.70429938,2975.9,2975.7,2.35234]
[1720368236868,0.70429938,2975.8,2975.7,2.35234]
[1720368237043,1.05649279,2975.8,2975.7,2.35234]
[1720368238040,1.05649279,2975.8,2975.5,2.35249]
[1720368238239,0.70414571,2975.7,2975.5,2.35249]
[1720368238791,0.70414571,2975.6,2975.4,2.35262]
[1720368238973,0.70414571,2975.6,2975.3,2.35264]
[1720368239143,1.05649279,2975.7,2975.3,2.35264]
[1720368239144,3.70414571,2975.4,2975.3,2.35264]
[1720368239493,3.70414571,2975.4,2975.0,2.35293]
[1720368239697,0.70414571,2975.3,2975.0,2.35293]
[1720368240246,0.70414571,2975.3,2974.9,5.35296]
[1720368240247,0.70414571,2975.3,2975.1,2.35286]
[1720368240950,0.70414571,2975.3,2974.9,2.35296]
[1720368240951,3.0,2975.1,2974.9,2.35296]
[1720368241306,3.0,2974.8,2974.4,2.3534]
[1720368241596,3.70405612,2974.8,2974.4,2.3534]
[1720368241748,0.70405612,2974.7,2974.4,2.3534]
[1720368241955,3.70405612,2974.8,2974.4,2.3534]
[1720368242368,3.0,2974.8,2974.4,2.3534]
[1720368242775,3.0,2974.8,2974.5,2.35333]
[1720368242945,0.70405612,2974.9,2974.6,2.35324]
[1720368243146,3.70405612,2975.1,2974.6,2.35324]
[1720368243355,3.70405612,2975.1,2974.8,2.35303]
[1720368243588,0.70405612,2975.2,2974.8,2.35303]
[1720368243890,3.0,2975.1,2974.8,2.35303]
[1720368244057,3.0,2975.1,2974.8,4.70606]
[1720368244246,3.0,2975.1,2974.8,2.35303]
[1720368244451,3.0,2975.1,2974.9,2.35298]
[1720368244647,0.70329543,2975.3,2975.0,2.35294]
[1720368244859,3.70329543,2975.5,2975.1,2.35282]
[1720368245075,0.70329543,2975.4,2975.1,2.35282]
[1720368245262,3.70329543,2975.5,2975.1,2.35282]
[1720368247185,3.0,2975.5,2975.1,2.35282]
[1720368247365,3.70277596,2975.5,2975.1,2.35282]
[1720368247749,3.70277596,2975.5,2975.2,2.35272]
[1720368247983,3.0,2975.5,2975.3,2.35269]
[1720368249756,0.70277596,2975.7,2975.4,2.35262]
[1720368249975,3.0,2975.8,2975.5,2.35249]
[1720368249976,3.70277596,2975.8,2975.5,2.35249]
[1720368250389,3.0,2975.8,2975.5,2.35249]
[1720368250906,3.0,2975.8,2975.6,2.35245]
[1720368251188,3.70237472,2975.8,2975.6,2.35245]
[1720368251366,3.0,2975.8,2975.6,2.35245]
[1720368251562,1.05356208,2976.0,2975.4,4.70519]
[1720368251563,3.0,2975.7,2975.4,4.70519]
[1720368252298,3.0,2975.7,2975.4,2.35257]
[1720368252865,3.0,2975.0,2974.3,2.3684]
[1720368253066,3.0,2975.0,2973.6,2.35401]
[1720368253067,5.4832,2975.0,2974.6,2.35324]
[1720368253711,6.18548878,2975.0,2974.6,2.35324]
[1720368254500,3.70228878,2975.0,2974.6,2.35321]
[1720368254681,0.70228878,2975.1,2974.8,2.35305]
[1720368254916,3.0,2975.0,2974.8,2.35304]
[1720368255590,3.0,2975.0,2974.9,2.35302]
[1720368255795,0.70228878,2975.3,2974.8,2.35304]
[1720368255968,3.0,2975.1,2974.8,2.35304]
[1720368256486,0.70228878,2975.3,2974.8,2.35304]
[1720368256804,3.0,2975.1,2974.8,2.35304]
[1720368257096,3.0,2975.1,2975.0,2.35294]
[1720368257309,3.0,2975.1,2974.9,2.35301]
[1720368257664,3.0,2975.1,2974.9,4.70597]
[1720368257996,3.70228878,2975.4,2975.0,2.35294]
[1720368258291,3.0,2975.1,2975.0,2.35294]
[1720368259067,3.70228878,2975.4,2975.1,2.35285]
[1720368259962,3.70274652,2975.4,2975.1,2.35285]
[1720368260395,3.0,2975.1,2974.9,2.35296]
[1720368260598,3.0,2975.1,2974.9,4.70592]
[1720368260897,3.0,2975.1,2975.0,2.35294]
[1720368262077,5.4222,2975.1,2974.2,3.0]
[1720368262418,3.0,2975.1,2974.9,2.35301]
[1720368262558,3.0,2975.1,2974.8,2.35309]
[1720368262764,3.47631978,2975.4,2975.2,2.35278]
[1720368262765,3.70274652,2975.4,2975.2,2.35278]
[1720368263698,3.0,2975.4,2975.2,2.35278]
[1720368263912,0.70274652,2975.6,2975.4,2.35262]
[1720368264113,3.0,2975.8,2975.6,2.35246]
[1720368264399,0.70274652,2975.9,2975.6,4.70486]
[1720368264603,0.70274652,2976.0,2975.8,2.35225]
[1720368264771,3.0,2976.0,2975.8,2.35225]
[1720368265403,3.0,2976.0,2975.9,2.35222]
[1720368265569,4.16411976,2976.0,2975.9,2.35222]
[1720368265777,4.16411976,2976.0,2975.9,5.174887]
[1720368265778,1.16411976,2976.0,2975.9,5.174887]
[1720368266110,7.45,2976.3,2976.2,4.70398]
[1720368266313,0.70274652,2976.7,2976.4,2.35183]
[1720368266519,3.70274652,2976.7,2976.4,2.35183]
[1720368266661,0.70274652,2976.7,2976.5,2.35174]
[1720368266867,8.15274652,2976.8,2976.5,2.35174]
[1720368267066,3.0,2976.7,2976.5,2.35174]
[1720368267579,3.70274652,2976.7,2976.5,2.35174]
[1720368267787,3.0,2976.7,2976.5,2.35174]
[1720368268605,3.70274652,2976.7,2976.5,2.35174]
[1720368268811,3.70274652,2976.7,2976.4,2.35183]
[1720368269171,3.70274652,2976.7,2976.3,2.3519]
[1720368269374,0.70294102,2976.6,2976.3,2.3519]
[1720368269596,0.70294102,2976.6,2976.0,2.35211]
[1720368269820,3.0,2976.2,2975.9,2.35218]
[1720368269974,3.0,2976.2,2976.0,2.35214]
[1720368271314,3.70294102,2976.2,2975.6,2.3524]
[1720368271519,1.05441154,2976.3,2975.6,2.3524]
[1720368271520,3.0,2975.9,2975.6,2.3524]
[1720368271689,3.70294102,2975.9,2975.6,2.3524]
[1720368271871,3.0,2975.5,2975.2,2.35271]
[1720368272071,3.0,2975.5,2975.3,2.35269]
[1720368272271,3.0,2975.5,2975.2,2.35271]
[1720368272476,3.70294102,2975.5,2975.2,2.35271]
[1720368273082,3.70294102,2975.5,2975.3,2.35269]
[1720368273282,3.70294102,2975.5,2975.2,2.35271]
[1720368273498,3.70294102,2975.5,2975.2,4.70544]
[1720368274214,3.70294102,2975.5,2975.3,2.3527]
[1720368274375,3.0,2975.5,2975.3,2.3527]
[1720368274775,3.70294102,2975.5,2975.3,2.3527]
[1720368275912,3.70294102,2975.5,2975.4,2.35262]
[1720368276132,3.0,2975.5,2975.4,2.35262]
[1720368276541,0.70294102,2975.6,2975.5,2.35254]
[1720368276698,0.70294102,2975.7,2975.6,2.35246]
[1720368277651,3.70294102,2975.8,2975.7,2.35238]
[1720368277950,3.0,2975.8,2975.5,2.35253]
[1720368278250,0.70359939,2975.6,2975.5,2.35253]
[1720368278837,0.70363826,2975.7,2975.5,2.35253]
[1720368279295,0.70363826,2975.6,2975.5,2.35253]
[1720368279914,0.70363826,2975.7,2975.5,2.35253]
[1720368280195,0.70363826,2975.6,2975.4,2.3526]
[1720368280743,0.70363826,2975.6,2975.5,2.35254]
[1720368281937,0.70399976,2975.6,2975.5,2.35254]
[1720368282327,1.0554574,2975.7,2975.5,2.35254]
[1720368282501,0.70404878,2975.6,2975.5,2.35254]
[1720368282701,1.0554574,2975.7,2975.5,2.35254]
[1720368282936,0.70404498,2975.6,2975.5,2.35254]
[1720368283156,1.0554574,2975.8,2975.7,2.35238]
[1720368283308,0.70399294,2975.8,2975.7,2.35238]
[1720368283707,8.15399294,2975.9,2975.7,2.35238]
[1720368283919,3.0,2975.8,2975.7,2.35238]
[1720368284123,3.70399294,2975.8,2975.7,2.35238]
[1720368285413,3.70395227,2975.8,2975.7,2.35238]
[1720368286314,3.70395227,2975.8,2975.5,2.35254]
[1720368286514,0.70395227,2975.7,2975.5,4.70503]
[1720368286739,0.70395227,2975.7,2975.6,2.35246]
[1720368288008,4.0559284,2975.8,2975.6,2.35246]
[1720368288615,4.0559284,2975.8,2975.5,2.35253]
[1720368288809,0.70418509,2975.6,2975.5,2.35253]
[1720368291151,3.0,2975.8,2975.6,2.35243]
[1720368291373,4.05642077,2975.8,2975.6,2.35243]
[1720368291544,1.05642077,2975.7,2975.6,2.35243]
[1720368292457,1.05642077,2975.7,2975.4,2.35256]
[1720368292663,3.70432648,2975.5,2975.4,2.35256]
[1720368292967,3.0,2975.5,2975.4,2.35256]
[1720368295453,3.0,2975.5,2975.2,2.35274]
[1720368295773,0.70438536,2975.3,2975.2,2.35274]
[1720368295956,1.05642077,2975.4,2975.2,2.35274]
[1720368297271,3.0,2975.1,2974.9,2.35296]
[1720368297429,3.70442148,2975.1,2974.7,2.35311]
[1720368297777,3.70442148,2975.1,2974.6,2.35321]
[1720368297778,0.70442148,2974.9,2974.6,4.70639]
[1720368298077,0.70442148,2974.8,2974.7,2.35317]
[1720368299928,0.70442148,2975.0,2974.8,2.35309]
[1720368300328,0.70442148,2974.9,2974.8,2.35309]
[1720368300846,4.05642077,2975.1,2974.8,2.35309]
[1720368300847,0.70442148,2975.0,2974.9,2.35302]
[1720368301046,0.70442148,2975.1,2975.0,4.70588]
[1720368301361,7.45,2975.3,2975.2,2.35278]
[1720368301362,8.15442148,2975.3,2975.2,2.35278]
[1720368301556,0.70442148,2975.3,2975.2,2.35278]
[1720368301860,0.70444405,2975.4,2975.3,2.3527]
[1720368302173,1.86872737,2975.4,2975.3,2.3527]
[1720368302386,3.70444405,2975.5,2975.4,2.35262]
[1720368302546,4.16424082,2975.5,2975.3,2.3527]
[1720368302739,2.22066159,2975.4,2975.2,2.35271]
[1720368302933,1.86879855,2975.3,2975.2,4.70549]
[1720368303144,0.70455773,2975.3,2975.2,4.70549]
[1720368303356,0.70455773,2975.5,2975.4,4.70524]
[1720368303646,0.70455773,2975.5,2974.8,4.61748]
[1720368303647,0.70455773,2975.5,2974.8,2.2644]
[1720368303833,0.70455773,2975.2,2975.1,2.35284]
[1720368304157,1.86895341,2975.2,2974.9,2.35297]
[1720368304374,0.70470674,2975.0,2974.9,2.35297]
[1720368304747,0.70470674,2975.0,2974.7,2.35313]
[1720368305079,0.70470674,2974.9,2974.8,2.35308]
[1720368305260,4.05642077,2975.0,2974.8,2.35308]
[1720368306986,0.70466074,2974.9,2974.8,2.35308]
[1720368307390,0.70466074,2974.9,2974.5,2.35329]
[1720368307601,3.0,2974.3,2973.9,2.35376]
[1720368307877,0.70454195,2974.2,2974.0,2.35373]
[1720368308183,0.70454195,2974.1,2974.0,2.35373]
[1720368308338,4.05642077,2974.3,2974.0,2.35373]
[1720368308339,0.70454195,2974.2,2974.0,2.35373]
[1720368308543,0.70454195,2974.2,2973.8,4.7077]
[1720368308768,0.70454195,2974.1,2973.8,2.35383]
[1720368309144,0.70454195,2974.0,2973.8,2.35383]
[1720368309340,0.70454195,2974.1,2973.8,2.35383]
[1720368310010,0.70454195,2974.1,2973.6,2.354]
[1720368310288,0.70454195,2974.1,2973.5,2.35407]
[1720368310289,0.70338955,2973.8,2973.5,2.35407]
[1720368310444,3.70338955,2973.9,2973.5,2.35407]